[Event "*** SCC Grand Prix: Titled Tuesday Blitz"]
[Site "Chess.com"]
[Date "2020.09.08"]
[Round "7"]
[White "ChronicUnhappiness"]
[Black "mmaks007"]
[Result "1-0"]
[WhiteElo "2454"]
[BlackElo "2255"]
[TimeControl "180+1"]
[EndTime "11:18:49 PDT"]
[Termination "ChronicUnhappiness won by resignation"]

1. c4 {[%clk 0:03:00.9]} 1... g6 {[%clk 0:03:00]} 2. d4 {[%clk 0:03:00.4]} 2...
Bg7 {[%clk 0:03:00.6]} 3. e4 {[%clk 0:03:00.7]} 3... d6 {[%clk 0:03:00.9]} 4.
Nc3 {[%clk 0:03:01.1]} 4... e5 {[%clk 0:03:01.1]} 5. Nf3 {[%clk 0:03:01.3]} 5...
Nc6 {[%clk 0:02:59.8]} 6. d5 {[%clk 0:03:00.8]} 6... Nd4 {[%clk 0:02:59.5]} 7.
Nxd4 {[%clk 0:02:55.4]} 7... exd4 {[%clk 0:02:59.4]} 8. Ne2 {[%clk 0:02:55.2]}
8... a6 {[%clk 0:02:54.1]} 9. Nxd4 {[%clk 0:02:54.6]} 9... Qh4 {[%clk
0:02:53.8]} 10. Be3 {[%clk 0:02:44.8]} 10... Nf6 {[%clk 0:02:43.9]} 11. Nf3
{[%clk 0:02:26.2]} 11... Qxe4 {[%clk 0:02:41.4]} 12. Bd3 {[%clk 0:02:25.8]}
12... Qe7 {[%clk 0:02:33.8]} 13. O-O {[%clk 0:02:24.1]} 13... O-O {[%clk
0:02:33]} 14. Re1 {[%clk 0:02:24.3]} 14... Qd8 {[%clk 0:02:30.7]} 15. h3 {[%clk
0:02:20.1]} 15... Re8 {[%clk 0:02:22.2]} 16. Qd2 {[%clk 0:02:19.8]} 16... c6
{[%clk 0:02:01.6]} 17. Bd4 {[%clk 0:02:15.6]} 17... c5 {[%clk 0:01:54.4]} 18.
Bc3 {[%clk 0:02:11.8]} 18... Bd7 {[%clk 0:01:51.8]} 19. Qf4 {[%clk 0:02:07.8]}
19... Rxe1+ {[%clk 0:01:45.5]} 20. Rxe1 {[%clk 0:02:06.2]} 20... Ne8 {[%clk
0:01:45]} 21. Bxg7 {[%clk 0:02:03.9]} 21... Kxg7 {[%clk 0:01:44.3]} 22. Ng5
{[%clk 0:01:59.8]} 22... Qf6 {[%clk 0:01:41.7]} 23. Qxf6+ {[%clk 0:01:57.2]}
23... Kxf6 {[%clk 0:01:40.5]} 24. Nxh7+ {[%clk 0:01:55.1]} 24... Kg7 {[%clk
0:01:40]} 25. Ng5 {[%clk 0:01:54.9]} 25... Kf6 {[%clk 0:01:31.6]} 26. f4 {[%clk
0:01:51.8]} 26... b5 {[%clk 0:01:29.2]} 27. b3 {[%clk 0:01:47.4]} 27... bxc4
{[%clk 0:01:28.6]} 28. Bxc4 {[%clk 0:01:45.8]} 28... a5 {[%clk 0:01:28.3]} 29.
Kf2 {[%clk 0:01:39.6]} 29... a4 {[%clk 0:01:27.3]} 30. Ne4+ {[%clk 0:01:13]}
30... Kg7 {[%clk 0:01:25.5]} 31. g4 {[%clk 0:01:13.9]} 31... axb3 {[%clk
0:01:24.3]} 32. axb3 {[%clk 0:01:14.8]} 32... Ra2+ {[%clk 0:01:16.3]} 33. Re2
{[%clk 0:01:15]} 33... Ra1 {[%clk 0:01:11.2]} 34. Kg3 {[%clk 0:01:13.7]} 34...
Rg1+ {[%clk 0:01:09.1]} 35. Rg2 {[%clk 0:01:13.3]} 35... Re1 {[%clk 0:01:09.1]}
36. Re2 {[%clk 0:01:11.4]} 36... Rg1+ {[%clk 0:01:08.8]} 37. Kh2 {[%clk
0:01:10]} 37... Rf1 {[%clk 0:01:05.8]} 38. Nf2 {[%clk 0:01:02]} 38... Kf8 {[%clk
0:00:55.4]} 39. Kg2 {[%clk 0:00:59.8]} 39... Ra1 {[%clk 0:00:51.5]} 40. Ne4
{[%clk 0:00:51.7]} 40... Ra8 {[%clk 0:00:47]} 41. Nf2 {[%clk 0:00:50.7]} 41...
Rb8 {[%clk 0:00:47.2]} 42. Re3 {[%clk 0:00:48.9]} 42... Bb5 {[%clk 0:00:47.1]}
43. Ne4 {[%clk 0:00:44.6]} 43... Bxc4 {[%clk 0:00:46.8]} 44. bxc4 {[%clk
0:00:45.1]} 44... Rb4 {[%clk 0:00:46.8]} 45. Rc3 {[%clk 0:00:45.2]} 45... Rb2+
{[%clk 0:00:46.6]} 46. Kg3 {[%clk 0:00:45.2]} 46... Re2 {[%clk 0:00:46.8]} 47.
Kf3 {[%clk 0:00:44.5]} 47... Rh2 {[%clk 0:00:47]} 48. Nf2 {[%clk 0:00:44.1]}
48... Nf6 {[%clk 0:00:27.1]} 49. Re3 {[%clk 0:00:37.2]} 1-0

[Event "*** SCC Grand Prix: Titled Tuesday Blitz"]
[Site "Chess.com"]
[Date "2020.09.08"]
[Round "7"]
[White "woodpusher52"]
[Black "Konek-Gorbunok"]
[Result "0-1"]
[WhiteElo "2446"]
[BlackElo "2342"]
[TimeControl "180+1"]
[EndTime "11:18:49 PDT"]
[Termination "Konek-Gorbunok won by checkmate"]

1. e4 {[%clk 0:02:45.1]} 1... c5 {[%clk 0:02:58.4]} 2. Nc3 {[%clk 0:02:42.8]}
2... a6 {[%clk 0:02:58.1]} 3. d4 {[%clk 0:02:42.8]} 3... cxd4 {[%clk 0:02:57.7]}
4. Qxd4 {[%clk 0:02:43.7]} 4... Nc6 {[%clk 0:02:57.5]} 5. Qd2 {[%clk 0:02:43.9]}
5... Nf6 {[%clk 0:02:57.3]} 6. b3 {[%clk 0:02:44.1]} 6... e6 {[%clk 0:02:50.9]}
7. Bb2 {[%clk 0:02:43]} 7... Bb4 {[%clk 0:02:37.2]} 8. f3 {[%clk 0:02:35.4]}
8... d5 {[%clk 0:02:27.9]} 9. exd5 {[%clk 0:02:35.3]} 9... Nxd5 {[%clk
0:02:26.8]} 10. O-O-O {[%clk 0:02:34.5]} 10... Nxc3 {[%clk 0:02:06.8]} 11. Bxc3
{[%clk 0:02:34.5]} 11... Qxd2+ {[%clk 0:02:01.6]} 12. Bxd2 {[%clk 0:02:34.4]}
12... Bxd2+ {[%clk 0:02:00.5]} 13. Rxd2 {[%clk 0:02:35.3]} 13... Bd7 {[%clk
0:02:00.3]} 14. Ne2 {[%clk 0:02:34]} 14... O-O-O {[%clk 0:01:58.8]} 15. Nf4
{[%clk 0:02:30.9]} 15... e5 {[%clk 0:01:52.4]} 16. Nd5 {[%clk 0:02:30.6]} 16...
Be6 {[%clk 0:01:50.5]} 17. Bc4 {[%clk 0:02:29.1]} 17... b5 {[%clk 0:01:39]} 18.
Nb6+ {[%clk 0:02:01.7]} 18... Kc7 {[%clk 0:01:38.1]} 19. Nd5+ {[%clk 0:01:52.8]}
19... Kb7 {[%clk 0:01:23.2]} 20. Ne3 {[%clk 0:01:09.6]} 20... bxc4 {[%clk
0:01:20.7]} 21. bxc4 {[%clk 0:01:07.7]} 21... Rxd2 {[%clk 0:01:19]} 22. Kxd2
{[%clk 0:01:08.6]} 22... Rd8+ {[%clk 0:01:13.5]} 23. Kc3 {[%clk 0:01:08.7]}
23... Nd4 {[%clk 0:01:07.8]} 24. Rb1+ {[%clk 0:01:07.8]} 24... Kc6 {[%clk
0:01:04.1]} 25. Rb4 {[%clk 0:01:06.6]} 25... Kc5 {[%clk 0:00:52.4]} 26. Ra4
{[%clk 0:01:03.2]} 26... Ne2+ {[%clk 0:00:44.5]} 27. Kb2 {[%clk 0:01:01.3]}
27... Rb8+ {[%clk 0:00:40.3]} 28. Ka3 {[%clk 0:01:01.4]} 28... Nc3 {[%clk
0:00:23.8]} 29. Rxa6 {[%clk 0:00:34.8]} 29... Bd7 {[%clk 0:00:15.5]} 30. Ra5+
{[%clk 0:00:23.7]} 30... Kd4 {[%clk 0:00:15.6]} 31. Rd5+ {[%clk 0:00:07.2]}
31... Nxd5 {[%clk 0:00:15.4]} 32. Nxd5 {[%clk 0:00:07.4]} 32... Kxc4 {[%clk
0:00:14.3]} 33. Ne3+ {[%clk 0:00:06.7]} 33... Kd4 {[%clk 0:00:12.6]} 34. Nf1
{[%clk 0:00:05.4]} 34... Kc3 {[%clk 0:00:12.5]} 35. Ne3 {[%clk 0:00:01.2]} 35...
Ra8# {[%clk 0:00:12.4]} 0-1

[Event "*** SCC Grand Prix: Titled Tuesday Blitz"]
[Site "Chess.com"]
[Date "2020.09.08"]
[Round "7"]
[White "Rozum_Ivan"]
[Black "GM_dmitrij"]
[Result "0-1"]
[WhiteElo "2715"]
[BlackElo "2916"]
[TimeControl "180+1"]
[EndTime "11:18:50 PDT"]
[Termination "GM_dmitrij won by checkmate"]

1. Nf3 {[%clk 0:03:00.4]} 1... Nf6 {[%clk 0:02:59.4]} 2. b3 {[%clk 0:03:01.3]}
2... d5 {[%clk 0:02:56.7]} 3. Bb2 {[%clk 0:03:00.5]} 3... Bg4 {[%clk 0:02:57.2]}
4. Ne5 {[%clk 0:03:00.4]} 4... Bf5 {[%clk 0:02:57.3]} 5. h3 {[%clk 0:02:59.1]}
5... Nbd7 {[%clk 0:02:52.9]} 6. g4 {[%clk 0:02:59.3]} 6... Be4 {[%clk
0:02:52.1]} 7. Rg1 {[%clk 0:02:57.9]} 7... Nxe5 {[%clk 0:02:43.5]} 8. Bxe5
{[%clk 0:02:58.8]} 8... Nd7 {[%clk 0:02:44.2]} 9. Bb2 {[%clk 0:02:58.5]} 9... e5
{[%clk 0:02:45.1]} 10. Nc3 {[%clk 0:02:56.4]} 10... Bg6 {[%clk 0:02:16.9]} 11.
Nxd5 {[%clk 0:02:55.4]} 11... Nc5 {[%clk 0:02:16.4]} 12. Bg2 {[%clk 0:02:42]}
12... Bd6 {[%clk 0:02:14]} 13. d4 {[%clk 0:02:39]} 13... exd4 {[%clk 0:02:12.6]}
14. Qxd4 {[%clk 0:02:39.9]} 14... Ne6 {[%clk 0:02:08.7]} 15. Qd2 {[%clk
0:02:33.9]} 15... c6 {[%clk 0:02:08.2]} 16. Ne3 {[%clk 0:02:31.6]} 16... Qe7
{[%clk 0:02:02.6]} 17. Nc4 {[%clk 0:02:24.5]} 17... Bb4 {[%clk 0:02:02.6]} 18.
c3 {[%clk 0:02:21.2]} 18... Rd8 {[%clk 0:02:02.9]} 19. Qe3 {[%clk 0:02:21]}
19... Bc5 {[%clk 0:02:03.3]} 20. Qg3 {[%clk 0:02:12.6]} 20... O-O {[%clk
0:01:58]} 21. h4 {[%clk 0:02:06.1]} 21... Rfe8 {[%clk 0:01:56.2]} 22. Bf3 {[%clk
0:01:29]} 22... h6 {[%clk 0:01:33.1]} 23. Kf1 {[%clk 0:01:21.7]} 23... Qf6
{[%clk 0:01:05.1]} 24. g5 {[%clk 0:01:16.3]} 24... hxg5 {[%clk 0:01:06]} 25.
hxg5 {[%clk 0:01:17.2]} 25... Qf5 {[%clk 0:01:06.4]} 26. Qh4 {[%clk 0:01:09.3]}
26... b5 {[%clk 0:00:52.2]} 27. Rh1 {[%clk 0:01:07.1]} 27... Kf8 {[%clk
0:00:49.5]} 28. Na5 {[%clk 0:00:50.5]} 28... Nxg5 {[%clk 0:00:42.2]} 29. Nxc6
{[%clk 0:00:48.5]} 29... f6 {[%clk 0:00:42.1]} 30. Qh8+ {[%clk 0:00:43.7]} 30...
Kf7 {[%clk 0:00:37.5]} 31. Nxd8+ {[%clk 0:00:44]} 31... Ke7 {[%clk 0:00:37.3]}
32. Nc6+ {[%clk 0:00:39.5]} 32... Kf7 {[%clk 0:00:36.1]} 33. Qh2 {[%clk
0:00:19.4]} 33... Nxf3 {[%clk 0:00:33.1]} 34. exf3 {[%clk 0:00:20.3]} 34... Qxf3
{[%clk 0:00:34]} 35. Qc7+ {[%clk 0:00:18.2]} 35... Kg8 {[%clk 0:00:31.1]} 36.
Rh2 {[%clk 0:00:17.9]} 36... Bxf2 {[%clk 0:00:18.3]} 37. Ne7+ {[%clk 0:00:08.5]}
37... Rxe7 {[%clk 0:00:18.2]} 38. Qc8+ {[%clk 0:00:03.8]} 38... Kf7 {[%clk
0:00:16.7]} 39. Rh3 {[%clk 0:00:02.6]} 39... Bd3# {[%clk 0:00:16.3]} 0-1

[Event "*** SCC Grand Prix: Titled Tuesday Blitz"]
[Site "Chess.com"]
[Date "2020.09.08"]
[Round "7"]
[White "pitterson"]
[Black "beto-betun"]
[Result "0-1"]
[WhiteElo "2226"]
[BlackElo "2137"]
[TimeControl "180+1"]
[EndTime "11:18:51 PDT"]
[Termination "beto-betun won by checkmate"]

1. d4 {[%clk 0:03:00.9]} 1... Nf6 {[%clk 0:02:58.9]} 2. c4 {[%clk 0:02:59.5]}
2... g6 {[%clk 0:02:58.8]} 3. Nc3 {[%clk 0:02:58]} 3... Bg7 {[%clk 0:02:58.8]}
4. e4 {[%clk 0:02:57.6]} 4... d6 {[%clk 0:02:58.6]} 5. Nf3 {[%clk 0:02:56.7]}
5... O-O {[%clk 0:02:57]} 6. Be2 {[%clk 0:02:55.9]} 6... e5 {[%clk 0:02:54.7]}
7. O-O {[%clk 0:02:55.7]} 7... Nc6 {[%clk 0:02:53.1]} 8. d5 {[%clk 0:02:54.5]}
8... Ne7 {[%clk 0:02:53.4]} 9. Ne1 {[%clk 0:02:53.9]} 9... Ne8 {[%clk
0:02:50.8]} 10. f3 {[%clk 0:02:53.8]} 10... f5 {[%clk 0:02:50.5]} 11. g4 {[%clk
0:02:53.5]} 11... f4 {[%clk 0:02:14.8]} 12. h4 {[%clk 0:02:51.9]} 12... h5
{[%clk 0:02:12]} 13. g5 {[%clk 0:02:49.8]} 13... c6 {[%clk 0:02:04.3]} 14. Nd3
{[%clk 0:02:41.9]} 14... Qb6+ {[%clk 0:01:54.3]} 15. Kg2 {[%clk 0:02:31.7]}
15... cxd5 {[%clk 0:01:50.9]} 16. cxd5 {[%clk 0:02:28.7]} 16... Bd7 {[%clk
0:01:46]} 17. Bd2 {[%clk 0:02:26.6]} 17... a5 {[%clk 0:01:37.7]} 18. Be1 {[%clk
0:02:24.2]} 18... Qd8 {[%clk 0:01:32.2]} 19. Rc1 {[%clk 0:02:20.8]} 19... Nc7
{[%clk 0:01:27.4]} 20. Nf2 {[%clk 0:01:58]} 20... b5 {[%clk 0:01:25.1]} 21. Nd3
{[%clk 0:01:44.5]} 21... Qb8 {[%clk 0:01:13.8]} 22. Bf2 {[%clk 0:01:43.3]} 22...
Na6 {[%clk 0:01:11.3]} 23. Nb1 {[%clk 0:01:41.4]} 23... Rc8 {[%clk 0:01:08.4]}
24. Nd2 {[%clk 0:01:40.8]} 24... Rxc1 {[%clk 0:01:05.1]} 25. Qxc1 {[%clk
0:01:40.2]} 25... Qb7 {[%clk 0:00:59.1]} 26. Qc3 {[%clk 0:01:34.3]} 26... a4
{[%clk 0:00:50.6]} 27. Rc1 {[%clk 0:01:30.1]} 27... Rb8 {[%clk 0:00:37]} 28. Nb4
{[%clk 0:01:22.5]} 28... Rc8 {[%clk 0:00:31.9]} 29. Nc6 {[%clk 0:01:02.5]} 29...
Nxc6 {[%clk 0:00:29.6]} 30. dxc6 {[%clk 0:00:50.2]} 30... Rxc6 {[%clk
0:00:29.9]} 31. Nc4 {[%clk 0:00:45]} 31... bxc4 {[%clk 0:00:28.7]} 32. Bxc4+
{[%clk 0:00:43.8]} 32... Kh7 {[%clk 0:00:26]} 33. Qd2 {[%clk 0:00:35.2]} 33...
Qc8 {[%clk 0:00:23]} 34. Qd5 {[%clk 0:00:31.4]} 34... Nb4 {[%clk 0:00:15.1]} 35.
Qf7 {[%clk 0:00:29]} 35... d5 {[%clk 0:00:13.3]} 36. exd5 {[%clk 0:00:27.1]}
36... Bh3+ {[%clk 0:00:11.2]} 37. Kh2 {[%clk 0:00:24.9]} 37... Rxc4 {[%clk
0:00:11.3]} 38. Rxc4 {[%clk 0:00:20.6]} 38... Qxc4 {[%clk 0:00:12.2]} 39. Kxh3
{[%clk 0:00:20.1]} 39... Qf1+ {[%clk 0:00:08.4]} 40. Kh2 {[%clk 0:00:18.3]}
40... Qxf2+ {[%clk 0:00:08.9]} 41. Kh1 {[%clk 0:00:17.7]} 41... Qxf3+ {[%clk
0:00:08.9]} 42. Kh2 {[%clk 0:00:17.9]} 42... Qg3+ {[%clk 0:00:08.2]} 43. Kh1
{[%clk 0:00:17.3]} 43... Nd3 {[%clk 0:00:07.6]} 44. d6 {[%clk 0:00:16.1]} 44...
Nf2# {[%clk 0:00:07.6]} 0-1

[Event "*** SCC Grand Prix: Titled Tuesday Blitz"]
[Site "Chess.com"]
[Date "2020.09.08"]
[Round "7"]
[White "Ramu_K_FM_FT"]
[Black "Deepweb2020"]
[Result "0-1"]
[WhiteElo "1965"]
[BlackElo "2211"]
[TimeControl "180+1"]
[EndTime "11:18:51 PDT"]
[Termination "Deepweb2020 won on time"]

1. e4 {[%clk 0:03:00.9]} 1... e5 {[%clk 0:02:55]} 2. Nf3 {[%clk 0:02:59.8]} 2...
Nc6 {[%clk 0:02:55.1]} 3. Bb5 {[%clk 0:02:58.4]} 3... a6 {[%clk 0:02:54.9]} 4.
Ba4 {[%clk 0:02:58.4]} 4... Nf6 {[%clk 0:02:55]} 5. O-O {[%clk 0:02:58.4]} 5...
b5 {[%clk 0:02:55.5]} 6. Bb3 {[%clk 0:02:57.8]} 6... Bc5 {[%clk 0:02:54.8]} 7.
d3 {[%clk 0:02:48.6]} 7... d6 {[%clk 0:02:54.9]} 8. h3 {[%clk 0:02:47.2]} 8...
Bb6 {[%clk 0:02:55.1]} 9. c3 {[%clk 0:02:46.2]} 9... h6 {[%clk 0:02:53.8]} 10.
a4 {[%clk 0:02:45.2]} 10... Rb8 {[%clk 0:02:51.8]} 11. axb5 {[%clk 0:02:44.4]}
11... axb5 {[%clk 0:02:52.7]} 12. Na3 {[%clk 0:02:44.8]} 12... Ba7 {[%clk
0:02:52.5]} 13. Nxb5 {[%clk 0:02:27]} 13... Rxb5 {[%clk 0:02:47.9]} 14. Ba4
{[%clk 0:02:26.6]} 14... Bxf2+ {[%clk 0:02:30.4]} 15. Rxf2 {[%clk 0:02:25]}
15... Rb6 {[%clk 0:02:31.3]} 16. Be3 {[%clk 0:02:17]} 16... Bd7 {[%clk
0:02:11.9]} 17. Bxb6 {[%clk 0:02:14.9]} 17... cxb6 {[%clk 0:02:12.8]} 18. Bb3
{[%clk 0:02:05]} 18... O-O {[%clk 0:02:11.9]} 19. Qe2 {[%clk 0:01:52.2]} 19...
Ne7 {[%clk 0:02:09.1]} 20. Nh4 {[%clk 0:01:50]} 20... Kh7 {[%clk 0:02:07.9]} 21.
Raf1 {[%clk 0:01:48.2]} 21... Ng6 {[%clk 0:02:07.4]} 22. Nxg6 {[%clk 0:01:40.5]}
22... fxg6 {[%clk 0:02:04.7]} 23. d4 {[%clk 0:01:40.2]} 23... Re8 {[%clk
0:02:03.4]} 24. dxe5 {[%clk 0:01:29.3]} 24... Rxe5 {[%clk 0:02:04.2]} 25. Bc2
{[%clk 0:01:27.5]} 25... Bb5 {[%clk 0:01:37.8]} 26. Qf3 {[%clk 0:01:13.9]} 26...
Bxf1 {[%clk 0:01:35.8]} 27. Rxf1 {[%clk 0:01:13.9]} 27... Qe7 {[%clk 0:01:35.1]}
28. Qe3 {[%clk 0:01:04.6]} 28... b5 {[%clk 0:01:25.2]} 29. Qb6 {[%clk
0:00:49.4]} 29... Qe6 {[%clk 0:01:12.6]} 30. Rd1 {[%clk 0:00:42.9]} 30... Rg5
{[%clk 0:00:49]} 31. Rxd6 {[%clk 0:00:19.8]} 31... Qxh3 {[%clk 0:00:46.5]} 32.
Qf2 {[%clk 0:00:19.4]} 32... Nh5 {[%clk 0:00:27.1]} 33. Bb3 {[%clk 0:00:17.6]}
33... Nf4 {[%clk 0:00:21.4]} 34. Kf1 {[%clk 0:00:15.1]} 34... Rxg2 {[%clk
0:00:18.8]} 0-1

[Event "*** SCC Grand Prix: Titled Tuesday Blitz"]
[Site "Chess.com"]
[Date "2020.09.08"]
[Round "7"]
[White "Andreikka"]
[Black "Parhamov"]
[Result "0-1"]
[WhiteElo "2818"]
[BlackElo "3000"]
[TimeControl "180+1"]
[EndTime "11:18:52 PDT"]
[Termination "Parhamov won on time"]

1. c4 {[%clk 0:03:00.9]} 1... e6 {[%clk 0:02:51.1]} 2. Nc3 {[%clk 0:03:01]} 2...
d5 {[%clk 0:02:51.2]} 3. d4 {[%clk 0:03:01.7]} 3... Bb4 {[%clk 0:02:51.2]} 4. a3
{[%clk 0:03:01.3]} 4... Bxc3+ {[%clk 0:02:51.3]} 5. bxc3 {[%clk 0:03:02.2]} 5...
Nf6 {[%clk 0:02:50.7]} 6. e3 {[%clk 0:03:02.8]} 6... O-O {[%clk 0:02:50.6]} 7.
cxd5 {[%clk 0:03:03]} 7... exd5 {[%clk 0:02:50]} 8. Bd3 {[%clk 0:03:03.6]} 8...
b6 {[%clk 0:02:50]} 9. Ne2 {[%clk 0:03:03.9]} 9... Ba6 {[%clk 0:02:49.7]} 10.
O-O {[%clk 0:03:04.6]} 10... Bxd3 {[%clk 0:02:46.9]} 11. Qxd3 {[%clk 0:03:05.5]}
11... c5 {[%clk 0:02:47.3]} 12. f3 {[%clk 0:03:05.7]} 12... Re8 {[%clk
0:02:47.1]} 13. Ng3 {[%clk 0:03:06.1]} 13... Nc6 {[%clk 0:02:47.6]} 14. Bb2
{[%clk 0:03:06.4]} 14... h5 {[%clk 0:02:45.1]} 15. Rae1 {[%clk 0:03:05.8]} 15...
h4 {[%clk 0:02:45.1]} 16. Nf5 {[%clk 0:03:03.1]} 16... h3 {[%clk 0:02:44.9]} 17.
g4 {[%clk 0:02:49.1]} 17... Ne7 {[%clk 0:02:38.9]} 18. Ng3 {[%clk 0:02:44.3]}
18... Rc8 {[%clk 0:02:37.2]} 19. Bc1 {[%clk 0:02:40.3]} 19... Qd7 {[%clk
0:02:29.8]} 20. g5 {[%clk 0:02:37.3]} 20... Nh7 {[%clk 0:02:27.2]} 21. e4 {[%clk
0:02:37.8]} 21... cxd4 {[%clk 0:02:25.9]} 22. cxd4 {[%clk 0:02:38]} 22... Ng6
{[%clk 0:02:16.7]} 23. Be3 {[%clk 0:02:26.7]} 23... Nh4 {[%clk 0:01:39.2]} 24.
Rc1 {[%clk 0:02:25.2]} 24... Rxc1 {[%clk 0:01:29.1]} 25. Bxc1 {[%clk 0:02:26.1]}
25... Rc8 {[%clk 0:01:29.4]} 26. Bd2 {[%clk 0:02:26.6]} 26... Nf8 {[%clk
0:01:26.9]} 27. exd5 {[%clk 0:02:12.9]} 27... Qxd5 {[%clk 0:01:18.6]} 28. Qe4
{[%clk 0:02:13.3]} 28... Qa2 {[%clk 0:01:18.7]} 29. Qxh4 {[%clk 0:02:03.9]}
29... Qxd2 {[%clk 0:01:17.5]} 30. Qxh3 {[%clk 0:02:04.8]} 30... Rc2 {[%clk
0:01:02.3]} 31. Nf5 {[%clk 0:01:08.3]} 31... Ng6 {[%clk 0:00:59.6]} 32. Kh1
{[%clk 0:00:30.2]} 32... Qxg5 {[%clk 0:00:37.8]} 33. Ng3 {[%clk 0:00:23.7]}
33... Qd2 {[%clk 0:00:34.3]} 34. Nf5 {[%clk 0:00:21.9]} 34... Nf4 {[%clk
0:00:29.9]} 35. Qg3 {[%clk 0:00:20.3]} 35... g6 {[%clk 0:00:29.6]} 36. Nh6+
{[%clk 0:00:19.8]} 36... Kf8 {[%clk 0:00:27.3]} 37. Ng4 {[%clk 0:00:15.5]} 37...
Rc1 {[%clk 0:00:21.5]} 38. Qg1 {[%clk 0:00:11.7]} 38... Qe2 {[%clk 0:00:20.1]}
0-1

[Event "*** SCC Grand Prix: Titled Tuesday Blitz"]
[Site "Chess.com"]
[Date "2020.09.08"]
[Round "7"]
[White "Duong57"]
[Black "Snowflake"]
[Result "0-1"]
[WhiteElo "2297"]
[BlackElo "2470"]
[TimeControl "180+1"]
[EndTime "11:18:52 PDT"]
[Termination "Snowflake won by resignation"]

1. d4 {[%clk 0:03:00.9]} 1... Nf6 {[%clk 0:02:58.3]} 2. c4 {[%clk 0:02:59.3]}
2... g6 {[%clk 0:02:57.9]} 3. Nc3 {[%clk 0:02:59.3]} 3... Bg7 {[%clk 0:02:58.8]}
4. e4 {[%clk 0:02:58.7]} 4... d6 {[%clk 0:02:59.1]} 5. Nf3 {[%clk 0:02:58.9]}
5... O-O {[%clk 0:02:59.4]} 6. Be2 {[%clk 0:02:59.2]} 6... e5 {[%clk 0:02:59.7]}
7. O-O {[%clk 0:02:59.3]} 7... Nc6 {[%clk 0:03:00.1]} 8. d5 {[%clk 0:02:59.7]}
8... Ne7 {[%clk 0:02:57.8]} 9. b4 {[%clk 0:02:59.9]} 9... Nh5 {[%clk 0:02:46.9]}
10. g3 {[%clk 0:02:59.3]} 10... f5 {[%clk 0:02:45.2]} 11. Ng5 {[%clk 0:02:58.8]}
11... Nf6 {[%clk 0:02:44.7]} 12. f3 {[%clk 0:02:58.3]} 12... f4 {[%clk
0:02:41.2]} 13. Kg2 {[%clk 0:02:57.7]} 13... c6 {[%clk 0:02:11.4]} 14. b5 {[%clk
0:02:54.3]} 14... h6 {[%clk 0:02:07.3]} 15. Ne6 {[%clk 0:02:53.4]} 15... Bxe6
{[%clk 0:02:07]} 16. dxe6 {[%clk 0:02:54]} 16... fxg3 {[%clk 0:02:01.1]} 17.
hxg3 {[%clk 0:02:53.2]} 17... Qc7 {[%clk 0:01:47.8]} 18. Be3 {[%clk 0:02:16.4]}
18... Rfd8 {[%clk 0:01:31.4]} 19. Qb3 {[%clk 0:01:57.3]} 19... Kh7 {[%clk
0:01:20.2]} 20. Rac1 {[%clk 0:01:56.2]} 20... Qc8 {[%clk 0:01:17.3]} 21. Rh1
{[%clk 0:01:18.7]} 21... Qxe6 {[%clk 0:01:09.9]} 22. Rh2 {[%clk 0:01:18.5]}
22... h5 {[%clk 0:01:08.6]} 23. Rch1 {[%clk 0:00:52.5]} 23... Kg8 {[%clk
0:01:07.7]} 24. Rd1 {[%clk 0:00:40.4]} 24... Rd7 {[%clk 0:00:56.6]} 25. Rhh1
{[%clk 0:00:38.4]} 25... Kf8 {[%clk 0:00:30.7]} 26. Qa4 {[%clk 0:00:36.5]} 26...
a6 {[%clk 0:00:25.3]} 27. bxc6 {[%clk 0:00:33.3]} 27... bxc6 {[%clk 0:00:24]}
28. Rb1 {[%clk 0:00:32.2]} 28... Qf7 {[%clk 0:00:19.4]} 29. Rhd1 {[%clk
0:00:30.9]} 29... Qe8 {[%clk 0:00:19.2]} 30. Rb6 {[%clk 0:00:29.9]} 30... Qc8
{[%clk 0:00:14.9]} 31. Rdb1 {[%clk 0:00:29.2]} 31... h4 {[%clk 0:00:14.3]} 32.
gxh4 {[%clk 0:00:26.4]} 32... Nh5 {[%clk 0:00:14.5]} 33. Qb3 {[%clk 0:00:19.4]}
33... Rd8 {[%clk 0:00:10.6]} 34. Na4 {[%clk 0:00:13.1]} 34... Bf6 {[%clk
0:00:07]} 35. Bg5 {[%clk 0:00:12.3]} 35... Bxg5 {[%clk 0:00:06.5]} 36. hxg5
{[%clk 0:00:13.2]} 36... Nf4+ {[%clk 0:00:07.4]} 37. Kf2 {[%clk 0:00:13.5]}
37... Qh3 {[%clk 0:00:07.9]} 38. Ke3 {[%clk 0:00:13.9]} 38... Qg2 {[%clk
0:00:07.2]} 39. Re1 {[%clk 0:00:13.6]} 39... Qxg5 {[%clk 0:00:07.4]} 40. Kf2
{[%clk 0:00:12.3]} 40... Nh3+ {[%clk 0:00:07.1]} 0-1